bitfinex/quotes_ETHUSD_20251117
["timestamp","ask_amount","ask_price","bid_price","bid_amount"]
[1763344547766,0.97734372,3124.7,3124.5,0.4992]
[1763344547971,0.97734372,3124.6,3124.5,0.9617]
[1763344548181,0.29583774,3124.6,3124.5,0.4625]
[1763344548355,0.97734372,3124.6,3124.5,0.9617]
[1763344548671,0.29583774,3124.6,3124.5,0.9617]
[1763344548834,0.97734372,3124.6,3124.5,0.9617]
[1763344549035,0.29583774,3124.6,3124.5,0.9617]
[1763344549235,0.29583774,3124.6,3124.5,0.4992]
[1763344550510,0.29583774,3124.6,3123.5,0.001]
[1763344550511,0.77313774,3124.6,3123.5,0.001]
[1763344550654,0.97734372,3124.5,3124.1,0.0496]
[1763344550850,0.29583774,3124.4,3124.1,0.0496]
[1763344551170,1.35502067,3124.8,3124.1,0.5121]
[1763344551171,0.29583774,3124.5,3124.1,0.5121]
[1763344551367,0.29583774,3124.4,3124.3,0.4992]
[1763344551554,0.97734372,3124.5,3124.1,0.5121]
[1763344551756,0.29583774,3124.4,3124.3,0.4632]
[1763344551968,0.85232159,3124.7,3124.3,0.4632]
[1763344551969,0.97749407,3124.5,3124.3,0.4632]
[1763344552151,0.29598809,3124.4,3124.3,0.4632]
[1763344552474,0.97749407,3124.5,3124.1,0.0496]
[1763344552674,0.29598809,3124.4,3124.2,0.1982]
[1763344552967,0.97749407,3124.5,3124.2,0.1982]
[1763344553162,0.29598809,3124.4,3123.9,0.4648]
[1763344553364,0.29598809,3124.3,3123.9,0.4648]
[1763344553673,0.29598809,3124.4,3123.9,0.4648]
[1763344553839,0.85232159,3124.7,3123.9,0.4648]
[1763344553840,0.29598809,3124.3,3124.2,0.4632]
[1763344554046,0.29598809,3124.4,3123.9,0.4648]
[1763344554284,0.97749407,3124.5,3124.2,0.4632]
[1763344554452,0.29598809,3124.4,3124.2,0.4632]
[1763344554674,0.68150598,3124.6,3124.2,0.4632]
[1763344554675,0.29598809,3124.3,3124.2,0.6614]
[1763344554976,0.29598809,3124.4,3124.3,0.4632]
[1763344556658,2.48876147,3124.8,3124.3,0.928]
[1763344556659,0.29598809,3124.5,3124.3,0.928]
[1763344556868,0.29598809,3124.4,3124.3,0.4648]
[1763344557074,0.29598809,3124.5,3124.4,0.4648]
[1763344557271,0.29598809,3124.6,3124.4,0.4648]
[1763344557650,0.29598809,3124.6,3124.5,0.4632]
[1763344557855,0.29598809,3124.7,3124.5,0.4632]
[1763344558074,0.50269908,3124.8,3124.2,0.1982]
[1763344558075,0.29598809,3124.6,3124.2,0.1982]
[1763344558290,0.29598809,3124.7,3124.6,0.4648]
[1763344558494,0.29598809,3124.7,3124.2,0.1982]
[1763344558654,0.29598809,3124.7,3124.6,0.4632]
[1763344558858,0.29598809,3124.8,3124.6,0.4632]
[1763344559157,0.29598809,3125.1,3124.5,0.4648]
[1763344559367,0.29598809,3125.1,3124.5,3.8438]
[1763344559563,0.002,3125.3,3125.0,0.4632]
[1763344559776,0.002,3125.3,3125.1,0.4632]
[1763344559950,0.002,3125.3,3125.2,0.4632]
[1763344560153,0.002,3125.3,3125.2,0.6614]
[1763344560483,0.002,3125.3,3125.2,0.928]
[1763344561055,0.002,3125.3,3125.2,0.4632]
[1763344561254,0.002,3125.3,3125.2,0.928]
[1763344561751,0.50463091,3125.3,3125.2,0.928]
[1763344561988,0.002,3126.3,3125.2,4.712504]
[1763344562284,0.002,3126.3,3126.2,0.6296]
[1763344562787,0.002,3126.3,3125.3,1.3613744]
[1763344562788,0.002,3126.3,3125.8,0.4648]
[1763344562951,0.002,3126.3,3125.8,0.1664]
[1763344563688,0.002,3126.3,3125.1,0.1982]
[1763344563689,0.4914,3126.2,3125.4,0.1664]
[1763344563889,0.29589841,3126.1,3125.1,0.1982]
[1763344564263,0.29589841,3126.1,3125.1,0.663]
[1763344564463,0.29589841,3126.1,3125.2,0.4648]
[1763344564663,0.29589841,3126.1,3125.1,0.1982]
[1763344564664,0.4914,3126.0,3125.1,0.1982]
[1763344564977,0.29589841,3125.9,3125.1,0.1982]
[1763344565295,0.002,3125.3,3125.1,0.1982]
[1763344565765,0.002,3125.3,3125.2,0.4632]
[1763344566266,0.50461291,3125.3,3125.2,0.4632]
[1763344567279,0.50461291,3125.3,3125.2,0.928]
[1763344568092,0.002,3125.3,3125.2,0.928]
[1763344569287,0.002,3125.3,3125.2,0.4632]
[1763344569487,0.002,3125.3,3124.2,0.1982]
[1763344569488,0.002,3125.3,3124.8,0.4648]
[1763344569699,0.002,3125.3,3125.2,0.6614]
[1763344570686,0.002,3125.3,3125.2,1.1262]
[1763344576212,0.4812,3125.3,3124.9,3.379]
[1763344576412,0.002,3125.3,3124.3,0.4648]
[1763344577393,0.002,3125.3,3124.3,3.8438]
[1763344577594,0.002,3125.3,3124.4,0.4042]
[1763344577824,0.002,3125.3,3124.4,0.869]
[1763344578011,0.002,3125.3,3124.4,0.4648]
[1763344578216,0.002,3125.3,3124.5,0.4648]
[1763344581632,0.50263434,3125.2,3124.5,0.4648]
[1763344582016,0.002,3125.3,3124.5,0.4648]
[1763344584131,0.002,3125.3,3124.5,0.4658]
[1763344587441,0.29805084,3125.3,3124.5,0.4658]
[1763344587737,0.002,3125.3,3124.5,0.4658]
[1763344587942,0.29805084,3125.3,3124.5,0.4658]
[1763344588240,0.002,3125.3,3124.5,0.4658]
[1763344588445,0.29805084,3125.3,3124.5,0.4658]
[1763344588608,0.002,3125.3,3124.5,0.4658]
[1763344588808,0.29805084,3125.3,3124.5,0.4658]
[1763344589009,0.002,3125.3,3124.5,0.4658]
[1763344589308,0.29605084,3125.2,3124.5,0.4658]
[1763344590319,0.4998,3124.6,3124.5,0.001]
[1763344590744,1.25145029,3124.6,3124.5,0.001]
[1763344590943,1.93493174,3124.6,3124.5,0.001]
[1763344591251,2.13522491,3124.6,3124.5,0.001]
[1763344592671,1.5392448,3124.5,3122.7,0.1939]
[1763344592831,0.394,3123.7,3122.7,0.1939]
[1763344593171,1.14565029,3123.7,3122.7,0.1939]
[1763344593528,1.14565029,3123.7,3122.7,0.654]
[1763344593863,1.64853653,3123.7,3122.7,0.654]
[1763344594725,1.64853653,3123.7,3122.9,0.4601]
[1763344595253,0.50288624,3123.7,3122.7,0.1939]
[1763344595457,0.50288624,3123.7,3123.2,0.4601]
[1763344595674,0.455,3124.2,3123.2,0.4601]
[1763344595873,0.6764,3123.7,3122.7,0.1939]
[1763344596249,1.1314,3123.7,3122.8,0.4601]
[1763344596763,0.4998,3123.7,3123.0,0.4601]
[1763344596962,0.9548,3123.7,3123.0,0.4601]
[1763344597334,0.9548,3123.7,3122.7,0.654]
[1763344597864,0.9548,3123.7,3122.9,0.4601]
[1763344598249,0.9548,3123.7,3122.2,0.55093496]
[1763344598250,1.25008507,3123.7,3122.2,0.55093496]
[1763344598768,1.75302015,3123.7,3122.2,0.55093496]
[1763344598958,2.74172611,3123.7,3122.2,0.55093496]
[1763344599132,2.23879103,3123.7,3122.2,0.55093496]
[1763344599338,2.06138518,3123.7,3122.2,0.09083496]
[1763344599581,1.55844117,3123.7,3122.6,0.4601]
[1763344599785,1.25008507,3123.7,3122.6,0.4601]
[1763344600490,1.25008507,3123.7,3122.8,0.4601]
[1763344600687,0.79508507,3123.7,3123.1,0.1939]
[1763344600982,0.4998,3123.7,3123.1,0.1939]
[1763344601875,0.50287674,3123.7,3123.6,0.9312]
[1763344602166,0.50287674,3123.7,3123.6,0.4711]
[1763344602375,0.50287674,3123.7,3123.6,0.9312]
[1763344603202,0.50287674,3123.7,3123.6,0.4711]
[1763344603401,1.00267674,3123.7,3123.6,0.001]
[1763344603605,1.45767674,3123.7,3123.6,0.001]
[1763344603781,1.00267674,3123.7,3123.6,0.001]
[1763344604583,1.45767674,3123.7,3123.6,0.001]
[1763344604785,0.50287674,3123.7,3123.6,0.4711]
[1763344605709,0.002,3124.5,3123.6,0.4711]
[1763344606002,0.455,3124.3,3123.6,0.4711]
[1763344606219,0.29523108,3124.2,3123.6,0.4711]
[1763344606576,0.29523108,3124.2,3123.6,0.9312]
[1763344606793,0.29723108,3124.5,3123.6,0.9312]
[1763344607010,0.75223108,3124.5,3123.6,0.9312]
[1763344607175,0.29523108,3124.4,3123.6,0.9312]
[1763344607376,0.75023108,3124.4,3123.6,0.9312]
[1763344607606,0.29523108,3124.3,3123.6,0.001]
[1763344607914,0.6764,3123.7,3123.6,0.001]
[1763344608612,1.1314,3123.7,3123.6,0.001]
[1763344608822,0.455,3124.2,3123.6,0.001]
[1763344608981,0.50286119,3123.7,3123.6,0.001]
[1763344609182,1.00266119,3123.7,3123.6,0.001]
[1763344609501,1.00266119,3123.7,3123.6,0.4711]
[1763344609502,0.50286794,3123.7,3123.6,0.4711]
[1763344609687,0.50286794,3123.7,3123.6,0.9312]
[1763344610078,0.002,3124.5,3123.6,0.9312]
[1763344610276,0.002,3124.5,3123.7,0.4601]
[1763344612483,0.50279302,3124.4,3123.7,0.4601]
[1763344613821,0.50279302,3124.4,3124.3,0.6381]
[1763344614191,0.50279302,3124.4,3124.3,1.101]
[1763344614493,0.002,3124.5,3124.3,1.101]
[1763344614692,0.002,3124.5,3124.4,0.9187]
[1763344617782,0.50470598,3124.5,3124.4,0.9187]
[1763344627347,1.43980598,3124.5,3123.4,0.1823]
[1763344627532,0.076,3124.4,3123.4,0.1823]
[1763344627843,0.84025331,3124.4,3123.4,0.1823]
[1763344628009,0.5447,3124.4,3123.4,0.1823]
[1763344628221,0.76428353,3124.3,3123.4,0.1823]
[1763344628419,0.4687,3124.3,3123.4,0.1823]
[1763344628626,0.002,3124.5,3124.2,0.4558]
[1763344629124,0.002,3124.5,3124.4,0.4558]
[1763344629621,0.9371,3124.5,3123.6,0.001]
[1763344629823,0.002,3124.5,3123.7,0.3381]
[1763344630022,0.002,3124.5,3124.4,0.4558]
[1763344631457,0.002,3124.5,3123.8,0.4629]
[1763344631458,0.97113356,3124.5,3123.8,0.4629]
[1763344631755,0.97113356,3124.5,3123.6,0.001]
[1763344631756,0.076,3124.3,3123.6,0.4639]
[1763344633463,0.50473356,3124.5,3124.2,0.4558]
[1763344634876,0.193,3125.7,3124.2,0.4558]
[1763344634878,0.002,3126.3,3125.5,0.405504]
[1763344635189,0.002,3126.3,3126.2,4.067804]
[1763344635327,0.002,3126.3,3126.2,4.351104]
[1763344635529,0.193,3127.9,3126.6,3.379]
[1763344635731,0.193,3127.9,3126.8,3.379]
[1763344636038,0.6617,3127.9,3126.9,3.7574504]
[1763344636237,0.6617,3127.9,3126.9,0.3784504]
[1763344636452,0.4536,3127.8,3126.6,0.2833]
[1763344639255,0.193,3127.9,3126.6,0.2833]
[1763344639442,0.193,3127.9,3126.7,0.405504]
[1763344639847,0.193,3128.0,3126.9,0.405504]
[1763344640043,0.002,3128.2,3127.0,0.2833]
[1763344640254,0.002,3127.8,3127.1,0.101]
[1763344640773,0.002,3127.8,3127.2,0.405504]
[1763344641175,0.002,3127.8,3127.7,0.2833]
[1763344641575,0.002,3127.8,3127.3,0.2833]
[1763344641783,0.002,3127.8,3127.2,0.405504]
[1763344642874,0.002,3127.8,3127.1,0.101]
[1763344643081,0.002,3127.8,3126.4,0.101]
[1763344643082,0.4942,3127.2,3126.4,0.101]
[1763344643496,0.4628,3127.1,3126.2,0.101]
[1763344646276,0.4628,3127.1,3126.0,0.101]
[1763344647006,0.4628,3127.1,3126.0,0.3843]
[1763344647969,0.4628,3127.1,3126.0,0.101]
[1763344648487,0.4628,3127.1,3125.1,0.85878261]
[1763344648488,0.6779,3126.1,3124.9,0.85878261]
[1763344648716,0.4942,3126.0,3124.2,0.2833]
[1763344648902,0.4942,3126.0,3124.1,0.1823]
[1763344648903,0.4628,3126.0,3124.1,0.1823]
[1763344649211,0.4628,3126.0,3124.5,0.2833]
[1763344650091,0.50248108,3125.7,3124.6,0.405504]
[1763344650407,0.50248108,3125.7,3124.5,0.2833]
[1763344650609,0.50248108,3125.7,3124.6,0.405504]
[1763344651113,0.50248108,3125.7,3124.6,0.2835]
[1763344651324,0.50248108,3125.7,3124.1,0.1823]
[1763344651325,0.50248108,3125.7,3125.6,0.2835]
[1763344651788,0.4628,3126.5,3125.6,0.2835]
[1763344651989,0.50238224,3126.1,3125.6,0.567]
[1763344652517,0.50238224,3126.1,3125.6,0.2835]
[1763344652883,0.6779,3125.7,3124.7,0.2835]
[1763344653216,0.6779,3125.7,3124.8,0.689004]
[1763344653620,0.1837,3125.9,3125.0,0.405504]
[1763344654622,0.4628,3125.8,3124.7,0.2835]
[1763344655009,0.4628,3125.8,3124.8,0.405504]
[1763344655693,0.4628,3125.8,3124.4,0.001]
[1763344655889,0.50239677,3126.2,3124.6,0.2835]
[1763344656320,0.96519677,3126.2,3124.7,0.405504]
[1763344656726,0.50239677,3126.2,3124.9,0.405504]
[1763344656895,0.50239677,3126.2,3125.1,0.405504]
[1763344657424,0.96519677,3126.2,3124.8,0.2835]
[1763344657591,0.96519677,3126.2,3124.9,0.405504]
[1763344658022,0.96519677,3126.2,3125.1,0.405504]
[1763344658634,0.96519677,3126.2,3124.8,0.405504]
[1763344658792,0.4628,3126.1,3124.8,0.689004]
[1763344658993,0.50239677,3126.2,3124.9,0.2835]
[1763344659502,0.50239677,3126.2,3125.1,0.405504]
[1763344659932,0.96519677,3126.2,3125.1,0.689004]
[1763344660839,0.50239677,3126.2,3125.1,0.689004]
[1763344661147,0.4628,3126.1,3125.1,0.405504]
[1763344661629,0.4628,3126.1,3125.1,0.689004]
[1763344661926,0.4628,3126.1,3125.1,0.405504]
[1763344662087,0.50239677,3126.2,3125.3,0.405504]
[1763344662293,0.50239677,3126.2,3126.1,0.3846]
[1763344662538,0.50239677,3126.2,3125.5,0.405504]
[1763344663334,0.50239677,3126.2,3126.1,0.1011]
[1763344663536,0.50239677,3126.2,3125.4,0.405504]
[1763344663753,0.4628,3126.4,3125.5,0.3784504]
[1763344664712,0.4628,3126.7,3125.6,0.405504]
[1763344666033,0.4628,3126.7,3125.4,0.405504]
[1763344666638,0.4628,3126.7,3125.3,0.85878261]
[1763344667630,0.4628,3126.7,3125.4,0.85878261]
[1763344668025,0.4628,3126.7,3125.5,0.405504]
[1763344668228,0.4628,3126.7,3125.4,0.85878261]
[1763344668553,0.4628,3126.7,3125.4,0.405504]
[1763344668749,0.4628,3126.7,3125.3,0.85878261]
[1763344668927,0.4628,3126.7,3125.3,0.20078168]
[1763344669131,0.4628,3126.7,3125.4,0.2835]
[1763344669331,0.4628,3126.7,3125.4,3.6625]
[1763344669528,0.4628,3126.7,3125.3,0.405504]
[1763344670239,0.4628,3126.7,3125.3,0.689004]
[1763344670438,0.4628,3126.7,3125.3,0.405504]
[1763344670832,0.4628,3126.7,3125.2,0.85878261]
[1763344671352,0.4628,3126.7,3125.3,0.85878261]
[1763344671934,0.4628,3126.7,3125.2,0.85878261]
[1763344672133,0.4628,3126.7,3125.3,1.28256087]
[1763344673242,0.4628,3126.7,3125.4,0.85878261]
[1763344673442,0.4628,3126.7,3125.2,1.1490342]
[1763344673443,0.4628,3126.7,3125.2,0.85878261]
[1763344674352,0.50242474,3126.4,3125.2,0.85878261]
[1763344674756,0.4618,3126.3,3125.2,0.85878261]
[1763344675256,0.6465,3125.3,3125.2,0.85878261]
[1763344675456,0.3848,3125.1,3124.4,0.85978261]
[1763344675655,0.5936,3124.6,3124.4,0.001]
[1763344676023,1.0554,3124.6,3124.4,0.001]
[1763344677128,0.4618,3125.0,3124.4,0.001]
[1763344677333,0.4576,3124.6,3124.4,0.001]
[1763344677661,0.9194,3124.6,3124.4,0.001]
[1763344678561,0.4618,3124.9,3124.4,0.001]
[1763344678921,0.3848,3125.1,3124.4,0.001]
[1763344680170,0.3848,3125.1,3124.5,0.2845]
[1763344680330,0.3848,3125.1,3124.6,0.405504]
[1763344680771,0.3848,3125.1,3124.7,0.2835]
[1763344680931,0.3848,3125.1,3125.0,0.2835]
[1763344681269,0.4618,3126.1,3125.0,0.2835]
[1763344681568,0.4618,3126.1,3125.4,0.2835]
[1763344682584,0.4618,3126.1,3124.9,3.784504]
[1763344682786,0.4618,3126.1,3125.1,0.405504]
[1763344683394,0.4618,3126.1,3125.0,0.46432866]
[1763344683550,0.4618,3126.1,3124.7,0.85878261]
[1763344683750,0.4618,3126.1,3124.5,0.85978261]
[1763344684065,0.4618,3126.1,3124.6,0.405504]
[1763344684482,0.4618,3126.1,3124.5,0.406504]
[1763344684890,0.4618,3126.1,3124.5,1.26528661]
[1763344685188,0.4618,3126.1,3124.5,0.406504]
[1763344686857,0.4618,3126.1,3124.5,0.690004]
[1763344689710,0.4618,3126.1,3124.5,1.54878661]
[1763344690214,0.4618,3126.1,3124.6,0.2835]
[1763344690591,0.4618,3126.1,3124.7,0.89828266]
[1763344691007,0.4618,3126.1,3124.9,0.405504]
[1763344691414,0.4618,3126.1,3124.8,0.405504]
[1763344691618,0.4618,3126.1,3124.9,0.2835]
[1763344691844,0.4618,3126.1,3124.8,0.405504]
[1763344691980,0.4618,3126.1,3124.5,0.001]
[1763344691981,0.6465,3124.9,3124.5,0.001]
[1763344692324,0.4576,3124.6,3124.5,0.001]
[1763344692817,0.9194,3124.6,3124.5,0.001]
[1763344694080,0.4576,3124.6,3124.5,0.001]
[1763344694594,0.85346402,3126.1,3124.5,0.2845]
[1763344694915,0.4618,3126.0,3124.5,0.2845]
[1763344695083,0.1889,3125.9,3124.5,0.2845]
[1763344695486,0.4618,3125.8,3124.5,0.2845]
[1763344697515,0.4618,3125.8,3124.5,0.001]
[1763344697839,0.4618,3125.8,3124.5,0.2845]
[1763344698449,0.4618,3125.8,3124.5,0.001]
[1763344699535,0.1889,3126.2,3125.7,0.2835]
[1763344699733,0.002,3126.3,3125.2,0.85878261]
[1763344700051,0.4806,3126.3,3125.3,0.42377826]
[1763344700229,0.4806,3126.3,3124.9,0.405504]
[1763344700653,0.4806,3126.3,3124.8,0.85878261]
[1763344700976,0.4806,3126.3,3124.5,0.85978261]
[1763344701151,0.405504,3126.2,3124.5,0.85978261]
[1763344701362,0.405504,3126.2,3124.5,0.20198168]
[1763344701518,0.06219004,3124.3,3124.2,0.001]
[1763344702055,0.06219004,3124.3,3124.2,0.690004]
[1763344702255,0.06219004,3124.3,3124.2,0.2845]
[1763344703161,0.06219004,3124.3,3124.2,1.83228661]
[1763344704035,0.06219004,3124.3,3124.2,0.973504]
[1763344704239,0.06219004,3124.3,3124.2,1.83228661]
[1763344704761,0.06219004,3124.3,3124.2,2.14884869]
[1763344705274,0.06219004,3124.3,3124.2,4.66906608]
[1763344705460,0.06219004,3124.3,3124.2,6.39261738]
[1763344706483,0.1884,3125.7,3124.5,0.405504]
[1763344706678,0.1884,3125.7,3124.7,1.26890783]
[1763344707168,0.50246554,3125.5,3124.9,0.405504]
[1763344708577,0.50246554,3125.5,3125.4,0.2835]
[1763344710457,1.42936554,3125.5,3125.1,0.86340383]
[1763344710651,0.4544,3125.2,3124.8,0.86340383]
[1763344710848,0.50246554,3125.5,3124.8,0.86340383]
[1763344711550,0.50246554,3125.5,3124.8,0.79921705]
[1763344711950,0.50246554,3125.5,3124.9,0.405504]
[1763344712759,0.50246554,3125.5,3125.0,0.2835]
[1763344712963,0.50246554,3125.5,3125.4,0.2835]
[1763344713159,0.4745,3126.3,3125.4,0.2835]
[1763344713389,0.5024296,3125.8,3125.4,0.2835]
[1763344713753,0.9749296,3125.8,3125.1,0.405504]
[1763344715596,0.9749296,3125.8,3125.0,3.56302091]
[1763344715793,0.9749296,3125.8,3125.1,0.4714226]
[1763344716883,0.5024296,3125.8,3125.1,0.4714226]
[1763344717274,0.5024296,3125.8,3125.1,3.8504226]
[1763344717474,0.5024296,3125.8,3125.2,0.2835]
[1763344717795,0.5024296,3125.8,3125.3,0.405504]
[1763344719253,0.4544,3125.4,3125.1,0.4714226]
[1763344719460,0.4725,3125.7,3125.1,0.405504]
[1763344719653,0.5024296,3125.8,3125.1,0.689004]
[1763344720305,0.5024296,3125.8,3125.1,4.068004]
[1763344722009,0.5024296,3125.8,3125.1,3.784504]
[1763344722308,0.5024296,3125.8,3125.2,0.39685249]
[1763344723914,0.5024296,3125.8,3125.2,4.05935249]
[1763344724099,0.5024296,3125.8,3125.7,0.2835]
[1763344724488,0.002,3126.3,3125.7,0.2835]
[1763344727696,0.002,3126.3,3125.3,4.53020511]
[1763344727697,0.6428,3125.8,3125.3,4.53020511]
[1763344728040,0.6428,3125.8,3125.0,0.18402091]
[1763344728041,0.4544,3125.4,3125.0,0.18402091]
[1763344728222,0.1884,3125.8,3124.4,1.15220511]
[1763344728223,0.4544,3125.3,3124.4,1.15220511]
[1763344728615,0.4725,3125.2,3124.4,0.001]
[1763344729138,0.4725,3125.2,3124.4,1.15220511]
[1763344729433,0.4725,3125.2,3124.4,0.001]
[1763344729835,0.4725,3125.6,3124.4,0.406504]
[1763344729998,0.4725,3125.6,3124.6,0.405504]
[1763344730930,0.4725,3125.6,3125.0,0.001]
[1763344732533,0.1884,3125.8,3125.0,0.001]
[1763344732732,0.002,3126.3,3125.0,0.001]
[1763344732935,0.4751,3126.2,3125.0,0.001]
[1763344735027,0.50243249,3126.0,3125.0,0.2845]
[1763344735221,0.50243249,3126.0,3125.0,0.46862091]
[1763344735423,0.6715,3125.9,3125.0,0.18512091]
[1763344735924,0.4751,3125.8,3125.0,0.18512091]
[1763344736118,0.6715,3125.9,3125.0,0.18512091]
[1763344736650,0.4751,3125.8,3125.0,0.18512091]
[1763344739334,0.4751,3125.8,3125.0,3.38]
[1763344739943,0.4751,3125.8,3125.0,0.001]
[1763344742667,0.4814,3125.1,3125.0,0.001]
[1763344743469,0.1964,3125.9,3125.0,0.001]
[1763344743658,0.4751,3125.8,3125.0,0.001]
[1763344746278,0.4814,3125.1,3125.0,0.001]
[1763344746644,0.9565,3125.1,3125.0,0.001]
[1763344746848,1.45900372,3125.1,3125.0,0.001]
[1763344758935,1.86450772,3125.1,3125.0,0.001]
[1763344759117,2.05095849,3125.1,3125.0,0.001]
[1763344764537,2.34647189,3125.1,3125.0,0.001]
[1763344767440,2.34847189,3125.1,3125.0,0.001]
[1763344767641,2.47687724,3125.1,3125.0,0.001]
[1763344771408,0.861904,3124.7,3124.4,0.001]
[1763344771611,0.4564,3124.5,3124.4,0.001]
[1763344771856,0.7519134,3124.5,3124.4,0.001]
[1763344772156,1.99998919,3124.5,3124.4,0.001]
[1763344772320,2.39856179,3124.5,3124.4,0.001]
[1763344772529,3.68967465,3124.5,3124.4,0.001]
[1763344772764,4.09517865,3124.5,3124.4,0.001]
[1763344774744,4.94717463,3124.5,3124.4,0.001]
[1763344775520,0.4564,3124.3,3122.2,0.09083496]
[1763344775727,1.25806253,3123.6,3122.2,0.09083496]
[1763344775921,1.14807193,3123.5,3122.2,0.09083496]
[1763344776165,0.2955134,3123.4,3122.2,0.09083496]
[1763344776362,0.2955134,3123.3,3122.2,0.09083496]
[1763344776522,0.2955134,3123.2,3122.2,0.09083496]
[1763344776721,0.7451,3123.4,3122.2,0.09083496]
[1763344776722,0.2955134,3123.1,3122.2,0.09083496]
[1763344776949,0.2955134,3123.0,3122.2,0.09083496]
[1763344777222,0.7571134,3123.2,3122.2,0.09083496]
[1763344777444,0.4707,3122.9,3122.2,0.09083496]
[1763344777663,0.2955134,3122.8,3122.2,0.37433496]
[1763344778857,0.2955134,3122.8,3122.2,0.09083496]
[1763344779057,0.2955134,3122.8,3122.7,0.2835]
[1763344779360,0.4707,3123.3,3122.7,0.567]
[1763344779560,0.2955022,3123.2,3122.7,0.567]
[1763344779760,0.2955022,3123.2,3122.7,0.2835]
[1763344779972,0.7571022,3123.2,3122.7,0.2835]
[1763344780182,0.2955022,3123.1,3122.3,0.2835]
[1763344782347,0.50302805,3123.0,3122.3,0.2835]
[1763344782546,0.2955022,3122.9,3122.3,0.2835]
[1763344783066,0.2955022,3122.9,3122.8,0.2835]
[1763344783251,0.2955022,3122.9,3122.3,0.2835]
[1763344783657,0.2955022,3122.9,3122.8,0.2835]
[1763344786391,0.2955022,3122.9,3122.8,0.567]
[1763344786556,0.50302805,3123.0,3122.8,0.567]
[1763344786882,0.50302805,3123.0,3122.9,0.567]
[1763344787711,0.50302805,3123.0,3122.9,0.2835]
[1763344788099,0.50302805,3123.0,3122.9,0.567]
[1763344788305,0.50302805,3123.0,3122.9,0.2835]
[1763344788720,0.50302805,3123.0,3122.9,0.567]
[1763344789595,0.50302805,3123.0,3122.9,0.2835]
[1763344791243,0.50302805,3123.0,3122.2,0.37433496]
[1763344791244,0.95942805,3123.0,3122.2,0.37433496]
[1763344791420,0.95942805,3123.0,3122.9,0.2835]
[1763344791421,0.50302805,3123.0,3122.9,0.2835]
[1763344791621,0.50302805,3123.0,3122.5,0.2835]
[1763344791773,0.50302805,3123.0,3122.2,0.09083496]
[1763344791977,0.1986,3122.9,3122.2,0.37433496]
[1763344792198,0.4947507,3122.9,3122.2,0.09083496]
[1763344794219,0.2961507,3122.9,3122.2,0.09083496]
[1763344794422,0.2961507,3122.9,3122.2,0.37433496]
[1763344795035,0.2961507,3122.9,3122.8,0.2835]
[1763344796245,0.7633507,3122.9,3122.2,0.09083496]
[1763344796443,0.4672,3122.7,3122.2,0.09083496]
[1763344796619,0.2961507,3122.6,3122.2,0.09083496]
[1763344796823,0.2961507,3122.9,3122.3,0.2835]
[1763344797056,0.50302583,3122.6,3122.5,0.2835]
[1763344797545,0.79917653,3122.6,3122.5,0.2835]
[1763344799122,0.79917653,3122.6,3122.2,0.09083496]
[1763344799335,0.2961507,3122.5,3122.2,0.09083496]
[1763344799833,0.2961507,3122.5,3122.4,0.2835]
[1763344800268,0.50302583,3122.6,3122.4,0.2835]
[1763344800473,0.50302583,3122.6,3122.5,0.2835]
[1763344800977,2.583e-05,3122.6,3122.5,0.972504]
[1763344801275,0.29706885,3124.0,3122.6,0.405504]
[1763344801575,0.29706885,3124.0,3122.5,1.0021504]
[1763344801576,0.50290184,3123.7,3123.0,0.405504]
[1763344801877,0.50290184,3123.7,3123.1,0.86403841]
[1763344802033,0.50290184,3123.7,3123.6,0.2835]
[1763344802237,0.002,3124.2,3123.6,0.2835]
[1763344802582,0.002,3124.2,3124.1,0.3747]
[1763344802722,0.002,3124.2,3124.1,0.6582]
[1763344803560,0.002,3124.2,3124.1,0.3747]
[1763344804659,0.002,3124.2,3124.1,0.6582]
[1763344806082,0.002,3124.2,3124.1,0.3747]
[1763344806279,0.002,3124.2,3124.1,0.6582]
[1763344809875,0.002,3124.2,3124.1,1.063704]
[1763344810178,0.002,3124.6,3124.2,0.405504]
[1763344810378,0.002,3124.6,3124.5,0.689004]
[1763344810781,0.002,3124.6,3124.5,0.972504]
[1763344811385,0.002,3124.6,3124.5,0.567]
[1763344811543,0.002,3124.6,3124.5,0.2835]
[1763344811879,0.002,3124.6,3124.5,0.567]
[1763344813447,0.002,3124.6,3124.5,0.972504]
[1763344814198,0.002,3124.6,3124.5,0.567]
[1763344815789,0.50459093,3124.6,3124.5,0.567]
[1763344816154,0.002,3124.6,3124.5,0.567]
[1763344816350,0.4946,3124.6,3124.1,0.0912]
[1763344816686,0.002,3124.6,3124.5,0.2835]
[1763344816898,0.002,3124.6,3124.5,0.567]
[1763344819079,0.5046044,3124.6,3124.5,0.567]
[1763344819277,0.5046044,3124.6,3124.5,3.946]
[1763344819493,0.002,3124.6,3124.5,1.367104]
[1763344819692,0.002,3124.6,3124.5,0.972504]
[1763344826008,0.002,3124.6,3124.5,0.689004]
[1763344826205,0.002,3124.6,3124.5,0.972504]
[1763344826558,0.002,3124.6,3124.5,0.2835]
[1763344830029,0.002,3124.6,3124.2,0.405504]
[1763344830324,0.002,3124.6,3124.5,0.2835]
[1763344830528,0.002,3124.6,3124.4,0.405504]
[1763344830691,0.4988,3124.4,3124.3,0.17662464]
[1763344831114,0.4988,3124.4,3123.9,0.405504]
[1763344831115,0.9873,3124.4,3123.9,0.405504]
[1763344831319,0.9873,3124.4,3123.6,0.86403841]
[1763344831826,0.9873,3124.4,3123.7,0.405504]
[1763344832035,0.9873,3124.4,3123.6,0.86403841]
[1763344832036,0.4881,3123.7,3123.6,0.86403841]